bitfinex-derivatives/quotes_BNBF0:USTF0_20250316
["timestamp","ask_amount","ask_price","bid_price","bid_amount"]
[1742144163844,0.28114666,604.79,603.42,0.3314441]
[1742144164847,0.33068783,604.8,603.42,0.3314441]
[1742144167243,0.33068783,604.8,603.43,0.30418138]
[1742144167443,1.2142727,618.26,603.43,0.30418138]
[1742144167444,2.52099649,605.9,603.45,0.33142762]
[1742144167642,0.33015286,605.78,603.45,0.33142762]
[1742144167841,0.28098664,605.77,603.45,0.33142762]
[1742144168044,0.33021827,605.66,603.45,0.33142762]
[1742144168446,0.28098664,605.65,603.45,0.33142762]
[1742144168950,0.33027825,605.55,603.45,0.33142762]
[1742144169146,0.28098664,605.54,603.46,0.30414522]
[1742144169650,0.28098664,605.53,603.46,0.30414522]
[1742144169848,0.28098664,605.52,603.46,0.30414522]
[1742144170151,0.33030553,605.5,603.48,0.33141114]
[1742144170354,0.28095815,605.49,603.49,0.30413537]
[1742144170548,0.28095815,605.48,603.49,0.30413537]
[1742144170750,0.33032735,605.46,603.51,0.33139467]
[1742144170949,0.28095815,605.45,603.52,0.30413537]
[1742144171152,0.28095815,605.45,603.54,0.3313782]
[1742144171452,0.33034372,605.43,603.55,0.30413537]
[1742144171653,0.28095815,605.42,603.57,0.33136173]
[1742144171849,0.28095815,605.42,603.58,0.30413537]
[1742144172949,0.28095815,605.41,603.6,0.33134526]
[1742144173149,0.33036009,605.4,603.61,0.30413537]
[1742144173354,0.33036009,605.4,603.6,0.33134526]
[1742144173649,0.28092762,605.39,603.61,0.30410442]
[1742144173953,0.28092762,605.38,603.63,0.33132879]
[1742144174254,0.28092762,605.37,603.64,0.30410442]
[1742144174453,0.28092762,605.36,603.64,0.30410442]
[1742144174651,0.28092762,605.35,603.64,0.30410442]
[1742144174850,0.28092762,605.34,603.64,0.30410442]
[1742144175049,0.28092762,605.33,603.64,0.30410442]
[1742144175353,0.28092762,605.32,603.64,0.30410442]
[1742144175550,0.28092762,605.31,603.64,0.30410442]
[1742144175754,0.28092762,605.3,603.64,0.30410442]
[1742144175949,0.28092762,605.29,603.64,0.30410442]
[1742144176150,0.28092762,605.28,603.64,0.30410442]
[1742144176355,0.28092762,605.39,603.65,0.33131781]
[1742144176556,0.33043104,605.27,603.66,0.30410442]
[1742144176757,0.28092762,605.26,603.66,0.30410442]
[1742144177250,0.28092762,605.26,603.67,0.33130683]
[1742144177451,0.33044196,605.25,603.67,0.33130683]
[1742144177651,0.28092762,605.24,603.67,0.33130683]
[1742144177855,0.33045288,605.23,603.67,0.33130683]
[1742144178055,0.28092762,605.22,603.68,0.3041606]
[1742144178251,0.3304638,605.21,603.69,0.63545603]
[1742144178459,0.28092762,605.2,603.7,0.30415992]
[1742144178757,0.33047472,605.19,603.71,0.33128488]
[1742144178957,0.28098131,605.18,603.71,0.33128488]
[1742144179157,0.33048564,605.17,603.71,0.33128488]
[1742144179350,0.28098131,605.16,603.71,0.33128488]
[1742144179555,0.33049657,605.15,603.71,0.33128488]
[1742144179755,0.28098131,605.14,603.71,0.33128488]
[1742144180352,0.28098131,605.13,603.71,0.33128488]
[1742144180657,0.28098131,605.12,603.71,0.33128488]
[1742144180856,0.28098131,605.11,603.71,0.33128488]
[1742144181053,0.28098131,605.1,603.71,0.33128488]
[1742144181258,0.28098131,605.09,603.71,0.33128488]
[1742144181462,0.28098131,605.08,603.71,0.33128488]
[1742144181658,0.61152157,605.07,603.71,0.33128488]
[1742144181960,0.28098131,605.06,603.72,0.548]
[1742144182954,0.33055119,605.05,603.72,0.548]
[1742144183160,0.28098131,605.04,603.72,0.548]
[1742144183460,0.61153796,605.04,603.72,0.548]
[1742144183657,0.28098131,605.03,603.72,0.548]
[1742144184258,0.2810112,605.02,603.72,0.548]
[1742144184461,0.33057304,605.01,603.72,0.548]
[1742144184661,0.2810112,605.0,603.72,0.548]
[1742144184856,0.61158971,605.0,603.72,0.548]
[1742144185058,0.2810112,604.99,603.72,0.548]
[1742144191261,0.33057851,605.0,603.72,0.548]
[1742144191461,0.28105177,604.99,603.72,0.548]
[1742144192059,0.28102153,604.98,603.72,0.548]
[1742144192259,0.28102153,604.99,603.72,0.548]
[1742144192459,0.28102153,604.98,603.72,0.548]
[1742144192659,0.28102153,604.99,603.72,0.548]
[1742144192859,0.28102153,604.98,603.72,0.548]
[1742144193261,0.33057851,605.0,603.72,0.548]
[1742144193262,0.28078063,604.97,603.72,0.548]
[1742144193661,0.28078063,604.96,603.72,0.548]
[1742144193857,0.33057851,605.0,603.72,0.548]
[1742144193858,0.28078063,604.95,603.72,0.548]
[1742144194062,0.28078063,604.99,603.72,0.548]
[1742144194362,0.28078063,604.98,603.72,0.548]
[1742144194558,0.28078063,604.97,603.72,0.548]
[1742144194763,0.28078063,604.99,603.72,0.548]
[1742144195063,0.28078063,604.98,603.72,0.548]
[1742144195263,0.28078063,604.99,603.72,0.548]
[1742144195464,0.28078063,604.98,603.72,0.548]
[1742144195664,0.28078063,604.99,603.72,0.548]
[1742144195868,0.28078063,604.98,603.72,0.548]
[1742144196067,0.28078063,604.99,603.72,0.548]
[1742144196267,0.28078063,604.98,603.72,0.548]
[1742144196467,0.28078063,604.97,603.72,0.548]
[1742144196968,0.28066483,604.96,603.72,0.548]
[1742144197267,0.28066483,604.95,603.72,0.548]
[1742144197568,0.28066483,604.94,603.72,0.548]
[1742144197767,0.28066483,604.99,603.72,0.548]
[1742144197968,0.28066483,604.98,603.72,0.548]
[1742144198168,0.28066483,604.99,603.72,0.548]
[1742144198369,0.28066483,604.98,603.72,0.548]
[1742144198665,0.28068191,604.97,603.72,0.548]
[1742144198969,0.28068191,604.96,603.72,0.548]
[1742144199167,0.28068191,604.99,603.72,0.548]
[1742144199368,0.28068191,604.98,603.72,0.548]
[1742144199563,0.28068191,604.97,603.72,0.548]
[1742144199767,0.28068191,604.96,603.72,0.548]
[1742144199970,0.28068191,604.99,603.72,0.548]
[1742144200167,0.33057851,605.0,603.72,0.548]
[1742144200366,0.28047681,604.99,603.72,0.548]
[1742144207374,0.28054057,604.98,603.72,0.548]
[1742144207572,0.28054057,604.99,603.72,0.548]
[1742144208965,0.33057851,605.0,603.72,0.548]
[1742144209169,0.28060504,604.99,603.72,0.548]
[1742144209373,0.33057851,605.0,603.72,0.548]
[1742144209569,0.28051989,604.99,603.72,0.548]
[1742144216373,0.33057851,605.0,603.72,0.548]
[1742144216374,0.28041461,604.98,603.72,0.548]
[1742144216579,0.28041461,604.97,603.72,0.548]
[1742144216780,0.28041461,604.99,603.72,0.548]
[1742144219081,0.28041461,604.99,603.71,0.33128488]
[1742144220181,0.28041204,604.98,603.71,0.33128488]
[1742144220380,0.28041204,604.99,603.71,0.33128488]
[1742144220576,0.28041204,604.98,603.71,0.33128488]
[1742144220975,0.28041204,604.97,603.71,0.33128488]
[1742144221185,0.28041204,604.99,603.71,0.33128488]
[1742144221378,0.33058944,604.98,603.71,0.33128488]
[1742144221583,0.28038199,604.97,603.71,0.33128488]
[1742144224384,0.33060037,604.96,603.71,0.33128488]
[1742144224587,0.28038199,604.95,603.71,0.33128488]
[1742144224785,0.28043324,604.94,603.71,0.33128488]
[1742144228182,0.33061676,604.93,603.71,0.33128488]
[1742144228583,0.28043324,604.92,603.71,0.33128488]
[1742144229586,0.33062769,604.91,603.71,0.33128488]
[1742144229783,0.28043324,604.9,603.71,0.33128488]
[1742144230188,0.33062769,604.91,603.71,0.33128488]
[1742144230384,0.28054368,604.9,603.71,0.33128488]
[1742144230588,0.33063862,604.89,603.71,0.33128488]
[1742144230788,0.28054368,604.88,603.71,0.33128488]
[1742144230989,0.33064956,604.87,603.71,0.33128488]
[1742144231195,0.28054368,604.86,603.71,0.33128488]
[1742144231389,0.33066049,604.85,603.71,0.33128488]
[1742144231592,0.28054368,604.84,603.71,0.33128488]
[1742144231892,0.33066049,604.85,603.71,0.33128488]
[1742144232086,0.28068073,604.84,603.71,0.33128488]
[1742144233692,0.6113166,604.83,603.71,0.33128488]
[1742144233990,0.61132207,604.82,603.71,0.33128488]
[1742144234190,0.61132754,604.81,603.71,0.33128488]
[1742144234392,0.28064518,604.8,603.71,0.33128488]
[1742144235392,0.28025603,604.79,603.71,0.33128488]
[1742144235791,0.28025603,604.78,603.71,0.33128488]
[1742144235993,0.28025603,604.8,603.71,0.33128488]
[1742144236193,0.28025603,604.79,603.71,0.33128488]
[1742144236394,0.28025603,604.8,603.71,0.33128488]
[1742144236603,0.28025603,604.79,603.71,0.33128488]
[1742144237001,0.28025603,604.8,603.71,0.33128488]
[1742144237197,0.28025603,604.79,603.71,0.33128488]
[1742144237400,0.28033294,604.8,603.71,0.33128488]
[1742144237599,0.28033294,604.79,603.71,0.33128488]
[1742144237799,0.28033294,604.78,603.71,0.33128488]
[1742144238201,0.28033294,604.77,603.71,0.33128488]
[1742144238401,0.28033294,604.8,603.71,0.33128488]
[1742144240799,0.33068236,604.81,603.71,0.33128488]
[1742144241004,0.28006437,604.8,603.71,0.33128488]
[1742144244704,0.28008661,604.79,603.71,0.33128488]
[1742144244908,0.28008661,604.8,603.71,0.33128488]
[1742144246307,0.33069329,604.79,603.24,0.28820472]
[1742144246603,0.28008661,604.78,603.25,0.63586264]
[1742144246807,0.28008661,604.78,603.26,0.30432514]
[1742144248806,0.28008661,604.78,603.25,0.3315375]
[1742144249906,0.33070423,604.77,603.25,0.3315375]
[1742144250311,0.28008661,604.76,603.25,0.3315375]
[1742144250510,0.33071517,604.75,603.25,0.3315375]
[1742144250708,0.28008661,604.74,603.25,0.3315375]
[1742144250912,0.61069786,604.73,603.25,0.3315375]
[1742144251212,0.61070333,604.72,603.25,0.3315375]
[1742144251412,0.27997176,604.71,603.25,0.3315375]
[1742144252012,0.33073157,604.72,603.25,0.3315375]
[1742144252213,0.2797752,604.71,603.25,0.3315375]
[1742144252811,0.33074251,604.7,603.25,0.3315375]
[1742144253111,0.2797752,604.69,603.25,0.3315375]
[1742144253310,0.33075345,604.68,603.25,0.3315375]
[1742144253512,0.2797752,604.67,603.25,0.3315375]
[1742144253716,0.33076439,604.66,603.25,0.3315375]
[1742144254016,0.2797752,604.65,603.25,0.3315375]
[1742144254210,0.61054506,604.65,603.25,0.3315375]
[1742144254414,0.2797752,604.64,603.25,0.3315375]
[1742144255612,0.27972468,604.63,603.25,0.3315375]
[1742144255814,0.33076986,604.65,603.25,0.3315375]
[1742144255815,0.27972468,604.62,603.25,0.3315375]
[1742144256012,0.27972468,604.64,603.25,0.3315375]
[1742144256217,0.27972468,604.63,603.25,0.3315375]
[1742144256419,0.27972468,604.64,603.25,0.3315375]
[1742144259323,0.27972468,604.64,603.26,0.30435124]
[1742144259521,0.27972468,604.64,603.27,0.33152651]
[1742144262920,0.3307808,604.63,603.27,0.33152651]
[1742144263221,0.27972468,604.62,603.27,0.33152651]
[1742144268627,0.28021033,604.61,603.27,0.33152651]
[1742144268829,0.28021033,604.62,603.27,0.33152651]
[1742144269030,0.28021033,604.62,603.28,0.3043382]
[1742144269227,0.28021033,604.62,603.29,0.33151552]
[1742144271930,0.28021033,604.62,603.29,0.91851552]
[1742144272827,0.28021033,604.62,603.3,0.30434668]
[1742144273033,0.28021033,604.62,603.31,0.33150453]
[1742144274930,0.33079175,604.61,603.31,0.33150453]
[1742144275126,0.28021033,604.6,603.31,0.33150453]
[1742144276529,0.33079175,604.61,603.31,0.33150453]
[1742144276829,0.28017912,604.6,603.31,0.33150453]
[1742144277031,0.28017912,604.59,603.31,0.33150453]
[1742144277423,0.61098728,604.58,603.31,0.33150453]
[1742144277630,0.28017912,604.57,603.31,0.33150453]
[1742144277826,0.28026792,604.56,603.31,0.33150453]
[1742144278028,0.3308191,604.56,603.31,0.33150453]
[1742144278235,0.28026792,604.55,603.31,0.33150453]
[1742144278434,0.33083005,604.54,603.31,0.33150453]
[1742144278735,0.28026792,604.53,603.31,0.33150453]
[1742144278935,0.33084099,604.52,603.31,0.33150453]
[1742144279236,0.28026792,604.51,603.31,0.33150453]
[1742144280836,0.33085194,604.5,603.31,0.33150453]
[1742144281232,0.28072301,604.49,603.31,0.33150453]
[1742144282531,0.33086289,604.48,603.31,0.33150453]
[1742144282835,0.28072301,604.47,603.31,0.33150453]
[1742144283437,0.33086289,604.48,603.31,0.33150453]
[1742144283637,0.28115199,604.47,603.31,0.33150453]
[1742144284536,0.33087383,604.46,603.31,0.33150453]
[1742144284736,0.28115199,604.45,603.31,0.33150453]
[1742144284936,0.33088478,604.44,603.31,0.33150453]
[1742144285136,0.28115199,604.43,603.31,0.33150453]
[1742144285336,0.61204225,604.43,603.31,0.33150453]
[1742144285536,0.61204772,604.42,603.31,0.33150453]
[1742144285730,0.61205319,604.41,603.31,0.33150453]
[1742144285936,0.28115199,604.4,603.31,0.33150453]
[1742144288239,0.3309012,604.41,603.31,0.33150453]
[1742144288440,0.28118988,604.4,603.31,0.33150453]
[1742144288632,0.61209656,604.4,603.31,0.33150453]
[1742144288834,0.28118988,604.39,603.31,0.33150453]
[1742144289340,0.61210203,604.39,603.31,0.33150453]
[1742144289541,0.28118988,604.38,603.31,0.33150453]
[1742144290236,0.28118988,604.37,602.28,1.22740846]
[1742144290536,0.28118988,604.36,602.29,0.30467772]
[1742144290733,0.28118988,604.35,602.29,0.30467772]
[1742144291241,0.28118988,604.34,602.31,0.33205492]
[1742144291442,0.28118988,604.34,602.32,0.30467772]
[1742144291640,0.28118988,604.33,602.32,0.30467772]
[1742144291841,0.28118988,604.32,602.32,0.30467772]
[1742144292241,0.28118988,604.31,602.33,0.564]
[1742144292439,0.33091215,604.39,602.33,0.564]
[1742144292440,0.28118988,604.3,602.34,0.30467772]
[1742144292640,0.28118988,604.29,602.34,0.30467772]
[1742144292841,0.28118988,604.28,602.34,0.30467772]
[1742144293035,0.28118988,604.27,602.34,0.30467772]
[1742144293238,0.28118988,604.26,602.34,0.30467772]
[1742144293438,0.28118988,604.25,602.34,0.30467772]
[1742144293638,0.28118988,604.24,602.34,0.30467772]
[1742144294041,0.28118988,604.23,602.34,0.30467772]
[1742144294235,0.28118988,604.22,602.33,0.564]
[1742144294544,0.28118988,604.21,602.33,0.564]
[1742144294742,0.28118988,604.2,602.33,0.564]
[1742144295142,0.28118988,604.19,602.33,0.564]
[1742144295538,0.28118988,604.18,602.33,0.564]
[1742144295737,0.28118988,604.17,602.33,0.564]
[1742144295942,0.28118988,604.16,602.33,0.564]
[1742144296145,0.28118988,604.15,602.33,0.564]
[1742144296344,0.28118988,604.14,602.34,0.30485625]
[1742144296547,0.28118988,604.13,602.33,0.564]
[1742144296746,0.28118988,604.12,602.33,0.564]
[1742144296946,0.28118988,604.11,602.33,0.564]
[1742144297247,0.28118988,604.1,602.33,0.564]
[1742144297646,0.28118988,604.09,602.33,0.564]
[1742144297843,0.28118988,604.08,602.33,0.564]
[1742144298041,0.28118988,604.07,602.33,0.564]
[1742144298247,0.28118988,604.06,602.33,0.564]
[1742144298440,0.28118988,604.05,602.33,0.564]
[1742144298646,0.28118988,604.04,602.33,0.564]
[1742144298848,0.28118988,604.03,602.33,0.564]
[1742144299148,0.28118988,604.02,602.33,0.564]
[1742144299449,0.28068368,604.01,602.33,0.564]
[1742144299643,0.28068368,604.0,602.33,0.564]
[1742144299849,0.28068368,603.99,602.33,0.564]
[1742144300150,0.28068368,603.98,602.33,0.564]
[1742144300343,0.28068368,603.97,602.33,0.564]
[1742144300547,0.28068368,603.96,602.33,0.564]
[1742144300748,0.28068368,603.95,602.33,0.564]
[1742144301049,0.28869007,604.03,602.33,0.564]
[1742144301247,0.28068555,604.02,602.33,0.564]
[1742144301447,0.28068555,604.01,602.33,0.564]
[1742144301646,0.28068555,604.0,602.33,0.564]
[1742144302046,0.28068555,603.99,602.33,0.564]
[1742144302244,0.56934808,603.99,602.33,0.564]
[1742144302442,0.28068555,603.98,602.33,0.564]
[1742144303552,0.28068555,603.97,602.33,0.564]
[1742144303749,0.28068555,604.38,602.33,0.564]
[1742144304051,0.28068555,604.37,602.33,0.564]
[1742144304256,0.28068555,604.36,602.33,0.564]
[1742144304547,0.28068555,604.35,602.33,0.564]
[1742144304751,0.28068555,604.34,602.33,0.564]
[1742144304950,0.33091215,604.39,602.33,0.564]
[1742144305144,0.2886326,604.34,602.33,0.564]
[1742144305350,0.28060002,604.33,602.33,0.564]
[1742144305547,0.28060002,604.32,602.33,0.564]
[1742144305747,0.28060002,604.31,602.33,0.564]
[1742144306148,0.28060002,604.3,602.33,0.564]
[1742144306453,0.28060002,604.29,602.33,0.564]
[1742144306850,0.28060002,604.28,602.33,0.564]
[1742144307152,0.28060002,604.27,602.33,0.564]
[1742144307353,0.2886326,604.34,602.33,0.564]
[1742144307354,0.28060002,604.26,602.33,0.564]
[1742144307551,0.28060002,604.25,602.33,0.564]
[1742144307752,0.28060002,604.24,602.33,0.564]
[1742144307954,0.28060002,604.23,602.33,0.564]
[1742144308150,0.28060002,604.22,602.33,0.564]
[1742144308351,0.28060002,604.21,602.33,0.564]
[1742144308555,0.28060002,604.2,602.33,0.564]
[1742144308855,0.28060002,604.19,602.33,0.564]
[1742144309057,0.28060002,604.18,602.34,0.30487965]
[1742144309357,0.28060002,604.17,602.33,0.564]
[1742144309656,0.28060002,604.16,602.33,0.564]
[1742144309853,0.28060002,604.15,602.33,0.564]
[1742144310064,0.28060002,604.14,602.33,0.564]
[1742144310259,0.28039724,604.13,602.33,0.564]
[1742144310455,0.28039724,604.12,602.33,0.564]
[1742144310662,0.28039724,604.11,602.33,0.564]
[1742144310862,0.28039724,604.1,602.33,0.564]
[1742144311165,0.28039724,604.09,602.33,0.564]
[1742144311366,0.28039724,604.08,602.33,0.564]
[1742144311559,0.28039724,604.07,602.33,0.564]
[1742144311761,0.28039724,604.06,602.33,0.564]
[1742144311961,0.28039724,604.05,602.33,0.564]
[1742144312159,0.28039724,604.04,602.33,0.564]
[1742144312361,0.28039724,604.03,602.33,0.564]
[1742144312559,0.28039724,604.02,602.33,0.564]
[1742144312759,0.28039724,604.01,602.33,0.564]
[1742144312960,0.28039724,604.0,602.33,0.564]
[1742144313161,0.28039724,603.99,602.33,0.564]
[1742144313363,0.28039724,603.98,602.33,0.564]
[1742144313665,0.28039724,604.09,602.33,0.564]
[1742144313857,0.28039724,604.08,602.33,0.564]
[1742144314258,0.28039724,604.07,602.33,0.564]
[1742144314459,0.28039724,604.06,602.33,0.564]
[1742144314666,0.28039724,604.05,602.33,0.564]
[1742144314863,0.28039724,604.04,602.33,0.564]
[1742144315065,0.28039724,604.07,602.33,0.564]
[1742144315265,0.28039724,604.06,602.33,0.564]
[1742144315460,0.28039724,604.05,602.33,0.564]
[1742144315765,0.28866971,604.08,602.33,0.564]
[1742144315766,0.28039724,604.04,602.33,0.564]
[1742144316064,0.28866971,604.08,602.33,0.564]
[1742144316065,0.28039724,604.03,602.33,0.564]
[1742144316259,0.28039724,604.07,602.33,0.564]
[1742144316463,0.28039724,604.06,602.33,0.564]
[1742144316659,0.28039724,604.05,602.33,0.564]
[1742144316858,0.28039724,604.04,602.33,0.564]
[1742144317066,0.28039724,604.03,602.33,0.564]
[1742144317364,0.28039724,604.02,602.33,0.564]
[1742144317564,0.33091215,604.39,602.33,0.564]
[1742144317765,0.28038801,604.38,602.33,0.564]
[1742144319160,0.28863021,604.37,602.33,0.564]
[1742144319364,0.28038801,604.36,602.33,0.564]
[1742144320063,0.28038801,604.38,602.33,0.564]
[1742144320259,0.28862542,604.35,602.33,0.564]
[1742144320463,0.28038801,604.34,602.33,0.564]
[1742144321161,0.28038801,604.33,602.33,0.564]
[1742144321562,0.28038801,604.32,602.33,0.564]
[1742144322359,0.28038801,604.31,602.33,0.564]
[1742144322665,0.28038801,604.3,602.33,0.564]
[1742144323164,0.28038801,604.29,602.33,0.564]
[1742144323465,0.28038801,604.28,602.33,0.564]
[1742144323665,0.28038801,604.33,602.33,0.564]
[1742144323861,2.52099649,604.26,602.33,0.564]
[1742144324065,0.28038801,604.25,602.33,0.564]
[1742144325963,2.52099649,604.22,602.33,0.564]
[1742144326266,0.28038801,604.21,602.33,0.564]
[1742144327067,0.28038801,604.21,602.34,0.33203838]
[1742144327462,0.28038801,604.23,602.34,0.33203838]
[1742144327768,0.28038801,604.22,602.34,0.33203838]
[1742144327967,0.28038801,604.23,602.34,0.33203838]
[1742144328164,0.28038801,604.22,602.34,0.33203838]
[1742144328563,0.28038801,604.21,602.34,0.33203838]
[1742144328864,0.28022585,604.2,602.34,0.33203838]
[1742144329072,0.28022585,604.19,602.34,0.33203838]
[1742144329269,0.28022585,604.18,602.34,0.33203838]
[1742144329469,0.28022585,604.17,602.34,0.33203838]
[1742144329670,2.52099649,603.74,602.34,0.33203838]
[1742144329867,0.28022585,603.73,602.34,0.33203838]
[1742144330065,0.28022585,603.72,602.34,0.33203838]
[1742144330264,0.28022585,603.71,602.34,0.33203838]
[1742144330468,2.52099649,603.74,602.34,0.33203838]
[1742144330469,0.28022585,603.73,602.34,0.33203838]
[1742144330670,0.28022585,603.72,602.34,0.33203838]
[1742144330871,0.33128488,603.71,602.34,0.33203838]
[1742144331065,0.28022585,603.7,602.34,0.33203838]
[1742144331264,2.52099649,603.58,602.34,0.33203838]
[1742144331471,2.52099649,603.35,602.34,0.33203838]
[1742144331671,0.28022585,603.34,602.34,0.33203838]
[1742144334274,0.28022585,603.33,602.34,0.33203838]
[1742144334470,0.28022585,603.42,602.34,0.33203838]
[1742144334676,0.28022585,603.41,602.34,0.33203838]
[1742144334875,0.28022585,603.42,602.34,0.33203838]
[1742144335975,0.28022585,603.6,602.34,0.33203838]
[1742144336276,0.28022585,603.59,602.34,0.33203838]
[1742144336476,0.28022585,603.6,602.34,0.33203838]
[1742144337873,0.33128488,603.71,602.34,0.33203838]
[1742144338073,0.28018068,603.7,602.34,0.33203838]
[1742144338877,0.33129586,603.69,602.34,0.33203838]
[1742144339078,0.28018068,603.68,602.34,0.33203838]
[1742144339279,0.33130683,603.67,602.34,0.33203838]
[1742144339478,0.28018068,603.66,602.34,0.33203838]
[1742144339675,0.33131781,603.65,602.34,0.33203838]
[1742144339980,0.28018068,603.64,602.34,0.33203838]
[1742144340179,0.33132879,603.63,602.34,0.33203838]
[1742144340379,0.28018068,603.62,602.34,0.33203838]
[1742144340580,0.33133977,603.61,602.34,0.33203838]
[1742144340780,0.28018068,603.6,602.34,0.33203838]
[1742144340982,0.33135075,603.59,602.34,0.33203838]
[1742144341378,0.28008773,603.58,602.34,0.33203838]
[1742144344583,0.33135075,603.59,602.34,0.33203838]
[1742144344785,0.27986903,603.58,602.34,0.33203838]
[1742144345790,0.27986903,603.58,602.35,0.412]
[1742144346888,0.27985092,603.57,602.35,0.412]
[1742144347088,0.27985092,603.56,602.35,0.412]
[1742144347284,0.27985092,603.58,602.35,0.412]
[1742144347489,0.27985092,603.57,602.35,0.412]
[1742144347689,0.27985092,603.58,602.35,0.412]
[1742144347887,0.27985092,603.57,602.35,0.412]
[1742144348083,0.27985092,603.58,602.35,0.412]
[1742144349289,0.27985092,603.58,602.36,0.33202735]
[1742144350786,0.33135075,603.59,602.36,0.33202735]
[1742144351691,0.28005679,603.58,602.36,0.33202735]
[1742144357090,0.33135075,603.59,602.36,0.33202735]
[1742144363100,0.27995811,603.58,602.36,0.33202735]
[1742144363899,0.27995811,603.58,602.37,0.30479149]
[1742144364105,0.27995811,603.58,602.38,0.33201633]
[1742144364294,0.27995811,603.58,602.39,0.30479149]
[1742144364500,0.27995811,603.58,602.4,0.33200531]
[1742144364698,0.27995811,603.58,602.41,0.30479149]
[1742144364895,0.27995811,603.58,602.42,0.33199428]
[1742144365101,0.27995811,603.58,602.43,0.30479149]
[1742144365302,0.27995811,603.58,602.44,0.33198326]
[1742144365505,0.27995811,603.58,602.45,0.30479149]
[1742144365802,0.27995811,603.58,602.46,0.33197224]
[1742144365996,0.27995811,603.58,602.47,0.30479149]
[1742144366200,0.27995811,603.58,602.48,0.33196122]
[1742144367902,0.33135075,603.59,602.48,0.33196122]
[1742144368711,2.52099649,604.04,602.48,0.33196122]
[1742144369006,0.61118241,604.03,602.48,0.33196122]
[1742144369206,0.61118241,604.03,602.49,0.30468239]
[1742144369502,0.28007303,604.02,602.51,0.33194469]
[1742144369703,0.28007303,604.02,602.52,0.30468239]
[1742144369908,0.28007303,604.02,602.54,0.33192817]
[1742144370207,0.28007303,604.02,602.55,0.30468239]
[1742144370408,0.28007303,604.02,602.57,0.33191164]
[1742144370609,0.28007303,604.02,602.58,0.30468239]
[1742144370809,0.28007303,604.02,602.59,0.33190062]
[1742144371009,0.33110938,604.03,602.59,0.33190062]
[1742144371215,0.28014448,604.02,602.6,0.30465857]
[1742144371407,0.28014448,604.02,602.61,0.33188961]
[1742144372816,0.33110938,604.03,602.61,0.33188961]
[1742144373016,0.28039273,604.02,602.61,0.33188961]
[1742144373815,0.28039273,604.02,602.62,0.30463718]
[1742144374010,0.28039273,604.02,602.61,0.33188961]
[1742144375615,0.28039273,604.02,602.62,0.30464489]
[1742144375815,0.28039273,604.02,602.64,0.33187309]
[1742144378519,0.33110938,604.03,602.64,0.33187309]
[1742144378721,0.28070005,604.02,602.64,0.33187309]
[1742144380724,0.28070005,604.02,602.65,0.30463585]
[1742144381025,0.28070005,604.02,602.67,0.33185657]
[1742144381224,0.28070005,604.02,602.68,0.30463585]
[1742144381423,0.28070005,604.02,602.7,0.33184005]
[1742144381725,0.28070005,604.02,602.71,0.30463585]
[1742144381918,0.28070005,604.02,602.73,0.33182353]
[1742144382121,0.28070005,604.02,602.74,0.30463585]
[1742144382318,0.28070005,604.02,602.76,0.33180702]
[1742144382624,0.28070005,604.02,602.77,0.30463585]
[1742144382825,0.28070005,604.02,602.78,0.33179601]
[1742144383028,0.28070005,604.02,602.79,0.30463585]
[1742144383227,0.28070005,604.02,602.8,0.331785]
[1742144383523,0.28070005,604.02,602.81,0.30463585]
[1742144383728,0.28070005,604.02,602.82,0.33177399]
[1742144384026,0.28070005,604.02,602.83,0.30463585]
[1742144384227,0.28070005,604.02,602.84,0.33176298]
[1742144384422,5.15597412,604.85,602.85,0.30463585]
[1742144384630,2.52099649,604.72,602.86,0.33175198]
[1742144384824,0.33074251,604.7,602.87,0.30460846]
[1742144385029,0.28090439,604.69,602.88,0.33174097]
[1742144385329,0.33075892,604.67,602.89,0.30460846]
[1742144385628,0.28090439,604.66,602.9,0.33172997]
[1742144385829,0.33077533,604.64,602.9,0.33172997]
[1742144386128,0.28090439,604.63,602.91,0.30460846]
[1742144386328,0.28090439,604.62,602.92,0.33171896]
[1742144386525,0.28090439,604.61,602.93,0.30460846]
[1742144386726,0.28090439,604.6,602.93,0.30460846]
[1742144386927,0.33077533,604.64,602.93,0.30460846]
[1742144386928,0.33080816,604.58,602.94,0.33170796]
[1742144387125,0.28090439,604.57,602.95,0.30460846]
[1742144387427,0.28090439,604.56,602.95,0.30460846]
[1742144387628,0.33083005,604.54,602.96,0.33169696]
[1742144388023,0.28097475,604.53,602.96,0.33169696]
[1742144388227,0.33084647,604.51,602.96,0.33169696]
[1742144388628,0.28097475,604.5,602.96,0.33169696]
[1742144388824,0.33085741,604.49,602.96,0.33169696]